Cogmind - Beta 13 @@@ ROGUE MODE // 2024.06.30 @ 19:53:04 Player: ywiktor Result: Destroyed by H-77 Assassin with Coil Gun Performance ------------- Evolutions (7) 3500 Regions Visited (20) 4000 Robots Destroyed (97) 485 Value Destroyed (3212) 3212 Prototype IDs (32) 640 Alien Tech Used (2) 400 Bonus (1358) 1358 TOTAL SCORE: 13595 Bonus ------- High Alert Combat Kills 58 Aligned with FarCom 300 Met Warlord at Base 500 MAIN.C Attacked Warlord 500 Cogmind --------- Core Integrity 0/1300 Matter 66/300 Energy 100/100 System Corruption 6% Temperature Cool (0) Movement Core (50) Location -3/Research Parts ------- > --- POWER (2) -------- (None) > --- PROPULSION (6) --- Combat Antigrav System > --- UTILITY (11) ----- Advanced Visual Processing Unit Advanced Signal Interpreter Improved Terrain Scan Processor Advanced Hacking Suite > --- WEAPON (2) ------- (None) > --- INVENTORY (5) ---- Micro Antimatter Reactor Medium Storage Unit Authchip [Device] Remote Datajack Peak State ------------ > --- POWER ------------ Neutrino Core > --- PROPULSION ------- Cooled VTOL Module Cooled VTOL Module Cooled VTOL Module Cooled Nuclear Pulse Thruster Field Propulsion Array > --- UTILITY ---------- Advanced Visual Processing Unit Advanced Signal Interpreter Advanced Terrain Scanner Improved Terrain Scan Processor Hacking Suite Improved Hacking Suite Advanced Hacking Suite System Shield System Shield > --- WEAPON ----------- Micro-nuke Launcher Power Sword > --- INVENTORY -------- Medium Storage Unit Authchip [Device] Vortex Shotgun Guided Plasma Cannon [Rating: 92] Favorites ----------- Power Fission Core Engine Ion Engine Power Core Fission Core Reactor Compact Particle Reactor Propulsion Cooled VTOL Module Leg Aluminum Leg Hover Unit Makeshift Hover Unit Flight Unit Cooled VTOL Module Utility Hacking Suite Device Advanced Terrain Scanner Storage Large Storage Unit Processor Advanced Signal Interpreter Hackware Hacking Suite Weapon Axe Energy Gun Particle Gun Energy Cannon Guided Plasma Cannon Ballistic Gun Gauss Rifle Ballistic Cannon Flak Cannon Launcher Micro-nuke Launcher Special Weapon Remote Datajack Slashing Weapon Axe Build | -11 -10 -10 -10 -9 -8 -7 -6 -6 -6 -5 -5 -5 -5 -4 -4 -4 -4 -4 -3 -3 ------- Run | Yrd Mat Min Exi Min Mat Fac Fac Was Fac Fac Upp Upp War Pro Fac Upp Upp Zhi Pro Res Slots Evolved 14 | . . . . . 4 2 2 . . 2 . . . . 2 . . . . 2 Power 1 | . . . . . . 1 . . . . . . . . . . . . . . Propulsion 4 | . . . . . 2 . 1 . . . . . . . 1 . . . . . Utility 9 | . . . . . 2 1 1 . . 2 . . . . 1 . . . . 2 Weapon . | . . . . . . . . . . . . . . . . . . . . . Parts Attached 158 | 6 7 . 5 2 13 24 29 . 1 20 6 5 1 7 13 4 2 4 4 5 Power 25 | 1 1 . . . 3 3 5 . . 3 2 2 . 1 1 . 1 1 . 1 Engine 9 | 1 1 . . . 3 1 2 . . 1 . . . . . . . . . . Core 14 | . . . . . . 2 3 . . 2 2 2 . 1 1 . 1 . . . Reactor 2 | . . . . . . . . . . . . . . . . . . 1 . 1 Propulsion 41 | 2 1 . . . 2 10 10 . . 6 3 1 . 2 3 . . . . 1 Treads . | . . . . . . . . . . . . . . . . . . . . . Leg 10 | 2 1 . . . 2 5 . . . . . . . . . . . . . . Wheel . | . . . . . . . . . . . . . . . . . . . . . Hover 2 | . . . . . . . . . . . 1 . . . . . . . . 1 Flight 29 | . . . . . . 5 10 . . 6 2 1 . 2 3 . . . . . Utility 38 | 1 4 . . . 3 4 5 . 1 8 . . . 1 5 1 . 2 1 2 Device 12 | . 1 . . . 1 1 1 . . 2 . . . . 3 . . 1 . 2 Storage 4 | 1 2 . . . . . . . . . . . . . . . . . 1 . Processor 11 | . 1 . . . 2 2 3 . . 1 . . . 1 . 1 . . . . Hackware 11 | . . . . . . 1 1 . 1 5 . . . . 2 . . 1 . . Protection . | . . . . . . . . . . . . . . . . . . . . . Artifact . | . . . . . . . . . . . . . . . . . . . . . Weapon 54 | 2 1 . 5 2 5 7 9 . . 3 1 2 1 3 4 3 1 1 3 1 Energy Gun 10 | . . . 1 . 3 1 1 . . . . . 1 1 . 1 . . 1 . Energy Cannon 16 | . . . 2 1 . 3 3 . . . 1 1 . 2 . . 1 1 . 1 Ballistic Gun 9 | 2 1 . 2 1 1 2 . . . . . . . . . . . . . . Ballistic Cannon 1 | . . . . . 1 . . . . . . . . . . . . . . . Launcher 11 | . . . . . . 1 3 . . 2 . . . . 3 2 . . . . Special Weapon 1 | . . . . . . . . . . . . . . . . . . . 1 . Impact Weapon . | . . . . . . . . . . . . . . . . . . . . . Slashing Weapon 6 | . . . . . . . 2 . . 1 . 1 . . 1 . . . 1 . Piercing Weapon . | . . . . . . . . . . . . . . . . . . . . . Special Melee Weapon . | . . . . . . . . . . . . . . . . . . . . . Unidentified Prototypes 14 | . . . 3 . 1 1 2 . . 2 . . 1 . . . . 3 . 1 Parts Lost 56 | . 1 . . . . 5 3 . . 4 9 3 . 4 5 1 4 . 11 6 Power 15 | . 1 . . . . 1 2 . . 2 2 2 . 1 . 1 2 . . 1 Propulsion 17 | . . . . . . 1 1 . . 1 3 1 . 2 3 . 1 . 4 . Utility 11 | . . . . . . . . . . 1 2 . . 1 . . . . 3 4 Weapon 13 | . . . . . . 3 . . . . 2 . . . 2 . 1 . 4 1 Highest Loss Streak 6 | . 1 . . . . 5 1 . . 3 5 2 . 3 3 1 3 . 6 2 To Critical Strikes . | . . . . . . . . . . . . . . . . . . . . . Average Slot Usage (%) 90 | . 96 100 98 100 92 96 96 86 90 94 91 74 79 90 87 87 87 77 54 31 Engine 5 | . 13 14 14 14 9 6 3 . . 2 1 . 2 5 5 . . . . . Core 4 | . . . . . . 4 8 13 13 7 8 7 5 4 5 5 3 . . . Leg 10 | . 28 28 28 28 33 29 . . . . . . . . . . . . . . Flight 16 | . . . . . . . 32 33 33 29 23 22 23 24 22 26 25 21 9 . Device 5 | . 6 . . . 3 . 12 13 13 7 5 5 5 4 4 5 5 4 1 4 Storage 3 | . 14 14 14 14 9 6 . . . . . . . . . . . . . . Processor 12 | . 4 14 14 14 20 22 15 6 6 8 7 5 5 8 10 14 15 15 15 14 Hackware 15 | . . . . . . 6 10 13 17 28 28 23 23 23 30 26 26 26 22 11 Energy Gun 1 | . . . . . 7 2 3 . . . . . 1 2 . . . . . . Ballistic Gun 6 | . 28 28 26 28 4 11 . . . . . . . . . . . . . . Launcher 1 | . . . . . . . 2 . . . 2 . . . 2 3 4 . . . Slashing Weapon 2 | . . . . . . . 4 6 6 5 4 1 5 5 3 5 5 5 2 . Naked Turns . | . . . . . . . . . . . . . . . . . . . . . Heaviest Build 49 | 11 30 29 35 38 36 49 34 26 26 26 23 15 11 19 25 22 29 14 16 12 Greatest Support 72 | 20 20 20 20 20 40 72 30 29 29 31 30 25 23 27 36 36 36 30 30 3 Greatest Overweight (x) 3 | . 1 1 1 1 1 . 1 . . . 1 2 . . 1 1 1 1 3 3 Average Overweight (x) . | . . 1 1 1 . . . . . . . . . . . . . . . . Largest Inventory Capacity 15 | 8 15 15 15 15 15 15 5 5 5 5 5 5 5 5 5 5 5 5 10 5 Average Capacity 8 | 6 14 15 15 15 15 14 5 5 5 5 5 5 5 5 5 5 5 5 5 5 Most Carried 15 | 5 15 15 15 15 15 15 5 5 5 5 5 4 5 5 5 5 4 4 3 4 Average Carried 7 | 2 9 15 14 15 14 14 4 5 4 4 3 2 3 4 4 4 3 3 2 3 Final Capacity 15 | 8 15 15 15 15 15 5 5 5 5 5 5 5 5 5 5 5 5 5 5 5 Final Carried 15 | 4 15 15 15 15 15 3 5 5 5 5 4 2 5 5 5 4 3 3 3 4 Class Distribution -------------------- 34% | Mutant 22% | Hacker-Scout 18% | Hacker-Sprinter 7% | Wizard-Scout 6% | Hacker-Mutant 4% | Scout Dominant Class ---------------- Mutant | -10/Materials Mutant | -10/Mines Mutant | -10/Exiles Mutant | -9/Mines Mutant | -8/Materials Mutant | -7/Factory Hacker-Scout | -6/Factory Hacker-Scout | -6/Waste Hacker-Scout | -6/Factory Hacker-Sprinter | -5/Factory Hacker-Sprinter | -5/Upper Caves Hacker-Mutant | -5/Upper Caves Hacker-Sprinter | -5/Warlord Hacker-Sprinter | -4/Proximity Caves Wizard-Scout | -4/Factory Hacker-Scout | -4/Upper Caves Hacker-Scout | -4/Upper Caves Hacker-Assassin | -4/Zhirov Wizard-Mutant | -3/Proximity Caves Hacker-Mutant | -3/Research Resources | -11 -10 -10 -10 -9 -8 -7 -6 -6 -6 -5 -5 -5 -5 -4 -4 -4 -4 -4 -3 -3 ----------- Run | Yrd Mat Min Exi Min Mat Fac Fac Was Fac Fac Upp Upp War Pro Fac Upp Upp Zhi Pro Res Matter Collected 2684 | 238 156 . . 89 60 456 203 . 57 456 110 54 . 272 137 182 173 . 41 . Remotely 125 | . 125 . . . . . . . . . . . . . . . . . . . Salvage Created 3105 | . 203 . . 23 60 812 355 . 57 527 339 22 . 191 140 118 246 . 12 . Parts 166 | . 13 . . . 2 40 23 . 1 37 15 3 . 8 9 5 6 . 4 . Haulers Intercepted . | . . . . . . . . . . . . . . . . . . . . . Recyclers Shooed 3 | . . . . . . 1 1 . . 1 . . . . . . . . . . Parts Field Recycled . | . . . . . . . . . . . . . . . . . . . . . Retrieved Matter . | . . . . . . . . . . . . . . . . . . . . . Parts Self-Destructed 36 | . . . . . . . . . . . 12 9 . 4 . 4 3 . 4 . Prevented 5 | . . . . . . . . . . . 2 3 . . . . . . . . Kills | -11 -10 -10 -10 -9 -8 -7 -6 -6 -6 -5 -5 -5 -5 -4 -4 -4 -4 -4 -3 -3 ------- Run | Yrd Mat Min Exi Min Mat Fac Fac Was Fac Fac Upp Upp War Pro Fac Upp Upp Zhi Pro Res Combat Hostiles Destroyed 73 | . 7 . . 1 1 13 8 . . 3 12 1 . 7 6 4 8 . 2 . Guns 22 | . 7 . . . 1 9 1 . . . . . . 4 . . . . . . Cannons 16 | . . . . 1 . 3 2 . . . 4 1 . 2 . . 1 . 2 . AOE 34 | . . . . . . 1 5 . . 3 8 . . . 6 4 7 . . . Classes Destroyed 14 | . 2 . . . 1 6 1 . 1 2 1 . . . . . . . . . Worker 13 | . . . . . . 2 1 . . 10 . . . . . . . . . . Builder 3 | . . . . . . 1 1 . . . . . . . 1 . . . . . Tunneler 1 | . . . . . . . . . . 1 . . . . . . . . . . Recycler 4 | . . . . . . 2 . . . 2 . . . . . . . . . . Mechanic 1 | . . . . . . . . . 1 . . . . . . . . . . . Operator 2 | . . . . . . 1 . . . 1 . . . . . . . . . . Drone 5 | . . . . . . . . . . . 1 . . 2 . . . . 2 . Watcher 1 | . . . . . . . . . . 1 . . . . . . . . . . Swarmer 36 | . 3 . . . . 4 1 . . 3 10 1 . 4 4 4 2 . . . Grunt 19 | . 4 . . 1 . 4 4 . . . . . . . 2 . 4 . . . Duelist 1 | . . . . . . . 1 . . . . . . . . . . . . . Sentry 4 | . . . . . 1 1 . . . . . . . 1 . . 1 . . . Hunter 4 | . . . . . . 1 1 . . . 1 . . . . . 1 . . . Programmer 4 | . . . . . . 3 1 . . . . . . . . . . . . . Best Kill Streak 9 | . 3 . . 1 1 6 5 . 1 9 5 1 . 4 7 4 4 . 2 . Combat Bots Only 6 | . 3 . . 1 1 4 4 . . 3 5 1 . 4 6 4 4 . 2 . Max Kills in Single Turn 9 | . 1 . . 1 1 2 5 . 1 9 3 1 . 1 2 3 2 . 1 . Gunslinging . | . . . . . . . . . . . . . . . . . . . . . Exploded 4 | . . . . . . 1 4 . . 3 3 . . . 2 3 2 . . . Melee . | . . . . . . . . . . . . . . . . . . . . . Uniques/NPCs Destroyed . | . . . . . . . . . . . . . . . . . . . . . Combat | -11 -10 -10 -10 -9 -8 -7 -6 -6 -6 -5 -5 -5 -5 -4 -4 -4 -4 -4 -3 -3 -------- Run | Yrd Mat Min Exi Min Mat Fac Fac Was Fac Fac Upp Upp War Pro Fac Upp Upp Zhi Pro Res Hostile Shots Fired 718 | . 49 . . 2 8 157 57 . . 18 65 31 . 41 37 14 35 . 73 131 Missed 297 | . 10 . . 1 1 58 16 . . 13 36 18 . 23 20 10 13 . 34 44 Damage Taken 7743 | . 392 . . 14 104 1377 710 . . 309 597 207 . 323 330 105 487 . 966 1822 Core 2876 | . 41 . . . 15 248 188 . . 39 151 47 . 61 69 35 110 . 559 1313 Absorbed by Shields 25 | . . . . . . . . . . . . . . . . . . . . 25 Core Remaining (%) 74 | 100 . . . 83 97 64 . . 77 . . . . 70 . . . . 27 . Volleys Fired 159 | . 22 . . 2 3 43 19 . . 1 19 1 . 14 9 4 16 . 5 1 Largest 2 | . 2 . . 1 2 2 2 . . 1 1 1 . 1 1 1 1 . 1 1 Hottest 170 | . 43 . . 120 78 120 170 . . 39 120 120 . 120 49 49 120 . 120 81 Shots Fired 235 | . 44 . . 2 6 82 32 . . 1 18 1 . 14 9 4 16 . 5 1 Gun 136 | . 44 . . . 6 64 12 . . . . . . 8 . . . . 2 . Cannon 53 | . . . . 2 . 17 13 . . . 7 1 . 6 . . 3 . 3 1 Launcher 46 | . . . . . . 1 7 . . 1 11 . . . 9 4 13 . . . Special . | . . . . . . . . . . . . . . . . . . . . . Kinetic 111 | . 44 . . . 3 64 . . . . . . . . . . . . . . Thermal 64 | . . . . 2 . 17 25 . . . 7 1 . 6 . . 3 . 3 . Explosive 34 | . . . . . . 1 7 . . . . . . . 9 4 13 . . . Electromagnetic 16 | . . . . . 3 . . . . 1 11 . . . . . . . . 1 Entropic 10 | . . . . . . . . . . . . . . 8 . . . . 2 . Robot Hit Streak 14 | . 7 . . 5 8 14 6 . . 3 9 8 . 10 3 . 6 . 9 . Robot Miss Streak 7 | . 5 . . . 2 6 2 . . . 2 . . 7 1 3 3 . 3 4 Penetration Max 1 | . . . . . . 1 . . . . . . . . . . . . . . Secondary Targets . | . . . . . . . . . . . . . . . . . . . . . Shots Hit Robots 166 | . 27 . . 2 4 53 14 . 4 17 13 1 . 11 4 2 10 . 4 . Core Hits 148 | . 12 . . 1 2 28 26 . . 14 16 1 . 7 9 5 20 . 6 1 Critical Kills . | . . . . . . . . . . . . . . . . . . . . . Critical Parts Destroyed 3 | . 1 . . . . 1 . . . . . . . . . . . . 1 . Critical Strikes 5 | . 1 . . . 1 1 . . . 1 . . . . . . . . 1 . Destroy 2 | . 1 . . . . 1 . . . . . . . . . . . . . . Corrupt 1 | . . . . . 1 . . . . . . . . . . . . . . . Sever 1 | . . . . . . . . . . 1 . . . . . . . . . . Detonate 1 | . . . . . . . . . . . . . . . . . . . 1 . Melee Attacks 103 | . . . . . . . 25 . 9 47 . 2 . . 18 2 . . . . Impact . | . . . . . . . . . . . . . . . . . . . . . Slashing 103 | . . . . . . . 25 . 9 47 . 2 . . 18 2 . . . . Piercing . | . . . . . . . . . . . . . . . . . . . . . Sneak Attacks 14 | . . . . . . . . . 2 12 . . . . . . . . . . Combat Hostiles . | . . . . . . . . . . . . . . . . . . . . . Follow-up Attacks . | . . . . . . . . . . . . . . . . . . . . . Damage Inflicted 9714 | . 290 . . 70 70 1496 1488 . 272 1775 696 40 . 353 922 504 1387 . 340 11 Guns 1621 | . 290 . . . 70 949 129 . . . . . . 129 . . . . 54 . Cannons 1547 | . . . . 70 . 482 273 . . . 241 40 . 224 . . 108 . 109 . Explosions 4943 | . . . . . . 56 1086 . . 642 455 . . . 922 326 1279 . 177 . Melee 1583 | . . . . . . . . . 272 1133 . . . . . 178 . . . . Ramming 20 | . . . . . . 9 . . . . . . . . . . . . . 11 Kinetic 1278 | . 290 . . . 39 949 . . . . . . . . . . . . . . Thermal 2402 | . . . . 70 . 482 402 . . 549 241 40 . 224 . . 108 . 286 . Explosive 3606 | . . . . . . 56 1023 . . . . . . . 922 326 1279 . . . Electromagnetic 642 | . . . . . 31 . 63 . . 93 455 . . . . . . . . . Impact . | . . . . . . . . . . . . . . . . . . . . . Slashing 1583 | . . . . . . . . . 272 1133 . . . . . 178 . . . . Piercing . | . . . . . . . . . . . . . . . . . . . . . Entropic 183 | . . . . . . . . . . . . . . 129 . . . . 54 . Highest Corruption 6 | . . . . . . 5 1 1 1 1 2 2 2 . 1 1 1 1 1 6 Average Corruption 1 | . . . . . . 1 1 1 1 1 1 2 2 . 1 1 1 1 1 2 Corruption Purged . | . . . . . . . . . . . . . . . . . . . . . Corruption Blocked . | . . . . . . . . . . . . . . . . . . . . . Effects 39 | . . . . . . . 4 . 2 7 8 4 . . 8 1 3 . 1 1 Message Errors 10 | . . . . . . . 2 . . 2 2 1 . . 3 . . . . . Matter Fused 11 | . . . . . . . . . 1 2 3 1 . . 2 . 2 . . . Heat Flow Errors 1 | . . . . . . . . . . . . 1 . . . . . . . . Energy Discharges 6 | . . . . . . . 1 . . 1 . 1 . . 2 1 . . . . Data Loss (minor) 6 | . . . . . . . . . 1 2 1 . . . 1 . 1 . . . Data Loss (major) 1 | . . . . . . . . . . . . . . . . . . . 1 . Misfires 1 | . . . . . . . 1 . . . . . . . . . . . . . Alerts 2 | . . . . . . . . . . . 1 . . . . . . . . 1 Weapon Failures 1 | . . . . . . . . . . . 1 . . . . . . . . . Overload Shots 8 | . . . . . . . 8 . . . . . . . . . . . . . Overflow Damage 998 | . . . . . . 43 73 . 111 396 61 . . . 127 106 43 . 38 . Projectiles 116 | . . . . . . 43 73 . . . . . . . . . . . . . Explosions 434 | . . . . . . . . . . 163 61 . . . 127 2 43 . 38 . Melee 448 | . . . . . . . . . 111 233 . . . . . 104 . . . . Knockbacks . | . . . . . . . . . . . . . . . . . . . . . Impact . | . . . . . . . . . . . . . . . . . . . . . Kinetic . | . . . . . . . . . . . . . . . . . . . . . Secondary . | . . . . . . . . . . . . . . . . . . . . . Self-Inflicted Damage 469 | . . . . . . 14 163 . . . 141 . . . . 29 39 . 79 4 Shots 12 | . . . . . . 1 4 . . . 4 . . . . 1 1 . 1 . Rammed 3 | . . . . . . . . . . . . . . . . . . . . 3 Targets Rammed 4 | . . . . . . 1 . . . . . . . . . . . . . 3 Kicked 1 | . . . . . . 1 . . . . . . . . . . . . . . Crushed . | . . . . . . . . . . . . . . . . . . . . . Highest Temperature 393 | . 18 . . 160 18 393 288 . . . 44 169 . 293 79 19 102 . 88 . Average Temperature 123 | . 8 . . 82 12 201 120 . . . 23 106 . 185 33 12 38 . 45 . Received Heat Transfer 1156 | . 114 . . 9 27 561 27 . . . 85 18 . 18 27 21 27 . 117 105 Effects 5 | . . . . . . 4 . . . . . . . 1 . . . . . . Shutdowns 1 | . . . . . . 1 . . . . . . . . . . . . . . Energy Bleed 3 | . . . . . . 2 . . . . . . . 1 . . . . . . Matter Decay 1 | . . . . . . 1 . . . . . . . . . . . . . . Siege Activations . | . . . . . . . . . . . . . . . . . . . . . Robots Corrupted . | . . . . . . . . . . . . . . . . . . . . . Combat Hostiles . | . . . . . . . . . . . . . . . . . . . . . Parts Fried 3 | . . . . . . . . . . . 3 . . . . . . . . . Impact Corruptions . | . . . . . . . . . . . . . . . . . . . . . Robots Melted 1 | . . . . . . . . . . . . . . 1 . . . . . . Combat Hostiles 1 | . . . . . . . . . . . . . . 1 . . . . . . Parts Melted 12 | . . . . . . 2 4 . . . 1 . . 5 . . . . . . Heat Transferred 3799 | . . . . 160 . 890 599 . . 400 560 80 . 480 . . 240 . 390 . Parts Sabotaged . | . . . . . . . . . . . . . . . . . . . . . Parts Stolen . | . . . . . . . . . . . . . . . . . . . . . Parts Stripped . | . . . . . . . . . . . . . . . . . . . . . Power Chain Reactions 3 | . . . . . . . 1 . . . 2 . . . . . . . . . Alert | -11 -10 -10 -10 -9 -8 -7 -6 -6 -6 -5 -5 -5 -5 -4 -4 -4 -4 -4 -3 -3 ------- Run | Yrd Mat Min Exi Min Mat Fac Fac Was Fac Fac Upp Upp War Pro Fac Upp Upp Zhi Pro Res Peak Influence 714 | . 121 . . 30 80 396 702 275 324 714 . . . . 704 . . . . 322 Initial 247 | . . . . . 11 . 183 245 192 158 . . . . 144 . . . . 247 Average 184 | . 62 . . 4 38 94 264 251 248 301 . . . . 297 . . . . 291 Maximum Alert Level 3 | . . . . . . 1 3 1 1 3 . . . . 3 . . . . 1 Low Security (%) 58 | 100 100 100 . 100 100 78 54 . 1 20 . . . . 42 . . . . . Level 1 31 | . . . . . . 21 24 100 98 66 . . . . 30 . . . . 100 Level 2 8 | . . . . . . . 20 . . 12 . . . . 25 . . . . . Level 3 . | . . . . . . . . . . . . . . . 1 . . . . . Level 4 . | . . . . . . . . . . . . . . . . . . . . . Level 5 . | . . . . . . . . . . . . . . . . . . . . . High Security . | . . . . . . . . . . . . . . . . . . . . . Max Security . | . . . . . . . . . . . . . . . . . . . . . Squads Dispatched 31 | . 1 . . . . 5 6 . 1 8 . . . . 9 . . . . 1 Investigation 17 | . 1 . . . . 2 3 . 1 4 . . . . 6 . . . . . Extermination 7 | . . . . . . 3 1 . . 2 . . . . 1 . . . . . Reinforcement 6 | . . . . . . . 2 . . 2 . . . . 1 . . . . 1 Assault 1 | . . . . . . . . . . . . . . . 1 . . . . . Garrison . | . . . . . . . . . . . . . . . . . . . . . Intercept . | . . . . . . . . . . . . . . . . . . . . . Searches Triggered . | . . . . . . . . . . . . . . . . . . . . . Construction Impeded 1 | . . . . . . . . . . . . . . . . . . . . 1 Haulers Reinforced . | . . . . . . . . . . . . . . . . . . . . . Active Scanning Responses . | . . . . . . . . . . . . . . . . . . . . . Cargo Convoy Interrupts . | . . . . . . . . . . . . . . . . . . . . . Stealth | -11 -10 -10 -10 -9 -8 -7 -6 -6 -6 -5 -5 -5 -5 -4 -4 -4 -4 -4 -3 -3 --------- Run | Yrd Mat Min Exi Min Mat Fac Fac Was Fac Fac Upp Upp War Pro Fac Upp Upp Zhi Pro Res Distress Signals 16 | . 2 . . 1 . 2 3 . . 2 . . . . 5 . . . . 1 Communications Jammed . | . . . . . . . . . . . . . . . . . . . . . Distress Signals . | . . . . . . . . . . . . . . . . . . . . . Times Spotted 285 | . 17 . . 1 1 27 25 6 9 28 40 17 13 16 36 6 6 . 27 10 Peak Tracking Total 12 | . 5 . . 1 1 6 6 6 6 7 9 9 12 4 10 4 4 . 12 6 Tactical Retreats 51 | . 1 . . . . . 9 . 1 6 8 4 1 3 8 2 . . 6 2 Traps | -11 -10 -10 -10 -9 -8 -7 -6 -6 -6 -5 -5 -5 -5 -4 -4 -4 -4 -4 -3 -3 ------- Run | Yrd Mat Min Exi Min Mat Fac Fac Was Fac Fac Upp Upp War Pro Fac Upp Upp Zhi Pro Res Traps Triggered 9 | . 1 . . . . 1 2 . . 2 . . . . 2 . . . . 1 Indirectly . | . . . . . . . . . . . . . . . . . . . . . Trap Hack Attempts . | . . . . . . . . . . . . . . . . . . . . . Triggered . | . . . . . . . . . . . . . . . . . . . . . Disarmed . | . . . . . . . . . . . . . . . . . . . . . Reprogrammed . | . . . . . . . . . . . . . . . . . . . . . Reused . | . . . . . . . . . . . . . . . . . . . . . Traps Extracted . | . . . . . . . . . . . . . . . . . . . . . Installed . | . . . . . . . . . . . . . . . . . . . . . Triggered 8 | . . . . . . . . . . . . 1 5 . . 2 . . . . Machines | -11 -10 -10 -10 -9 -8 -7 -6 -6 -6 -5 -5 -5 -5 -4 -4 -4 -4 -4 -3 -3 ---------- Run | Yrd Mat Min Exi Min Mat Fac Fac Was Fac Fac Upp Upp War Pro Fac Upp Upp Zhi Pro Res Machines Disabled 34 | . . . . . . 3 16 . . 14 . . . . 1 . . . . . Max in Single Turn 13 | . . . . . . 2 5 . . 13 . . . . 1 . . . . . Garrison Access 4 | . . . . . . . 1 . . 2 . . . . 1 . . . . . Machines Repaired . | . . . . . . . . . . . . . . . . . . . . . Machines Dismantled . | . . . . . . . . . . . . . . . . . . . . . Machines Sabotaged . | . . . . . . . . . . . . . . . . . . . . . Overloaded Fab Kills . | . . . . . . . . . . . . . . . . . . . . . Hacking | -11 -10 -10 -10 -9 -8 -7 -6 -6 -6 -5 -5 -5 -5 -4 -4 -4 -4 -4 -3 -3 --------- Run | Yrd Mat Min Exi Min Mat Fac Fac Was Fac Fac Upp Upp War Pro Fac Upp Upp Zhi Pro Res Machines Accessed 69 | . 2 . . . 3 6 12 . 4 13 1 . 5 . 12 1 . 9 . 1 Terminals 37 | . 2 . . . 3 6 7 . 2 9 . . . . 7 . . . . 1 Fabricators 10 | . . . . . . . 3 . 1 2 . . . . 4 . . . . . Repair Stations 1 | . . . . . . . 1 . . . . . . . . . . . . . Recycling Units 1 | . . . . . . . . . 1 . . . . . . . . . . . Scanalyzers . | . . . . . . . . . . . . . . . . . . . . . Garrison Access 4 | . . . . . . . 1 . . 2 . . . . 1 . . . . . Total Hacks 214 | . 4 . . . 12 17 30 . 7 37 1 . 12 . 45 1 . 46 . 2 Successful 147 | . 2 . . . 5 6 14 . 7 27 1 . 12 . 25 1 . 46 . 1 Failed 66 | . 2 . . . 7 11 16 . . 9 . . . . 20 . . . . 1 Catastrophic 5 | . . . . . 1 1 . . . 1 . . . . 1 . . . . 1 Database Lockouts 1 | . . . . . . . . . . 1 . . . . . . . . . . Manual 106 | . 4 . 1 . 12 16 16 . 3 27 . . . . 25 . . . . 2 Terminals 112 | . 4 . . . 12 17 16 . 3 29 . . . . 29 . . . . 2 Fabricators 30 | . . . . . . . 8 . 2 5 . . . . 15 . . . . . Repair Stations 4 | . . . . . . . 4 . . . . . . . . . . . . . Recycling Units 2 | . . . . . . . . . 2 . . . . . . . . . . . Scanalyzers . | . . . . . . . . . . . . . . . . . . . . . Garrison Access 6 | . . . . . . . 2 . . 3 . . . . 1 . . . . . Terminal Hacks 84 | . 1 . . . 3 1 1 . 1 10 1 . 12 . 7 1 . 46 . . Record 47 | . . . . . . 1 . . . 3 . . 5 . 4 . . 34 . . Part Schematic 7 | . . . . . 1 . . . . 1 . . . . 1 . . 4 . . Robot Analysis 8 | . 1 . . . 1 . . . . 2 . . . . . . . 4 . . Prototype ID Bank 9 | . . . . . . . . . . . . . 5 . . . . 4 . . Open Door 4 | . . . . . . . . . . . 1 . 2 . . 1 . . . . Branch Access Points 2 | . . . . . 1 . . . . . . . . . 1 . . . . . Fabricator Index 2 | . . . . . . . 1 . . 1 . . . . . . . . . . Recall Investigation 3 | . . . . . . . . . 1 2 . . . . . . . . . . Recall Extermination 1 | . . . . . . . . . . 1 . . . . . . . . . . Recall Assault 1 | . . . . . . . . . . . . . . . 1 . . . . . Fabricator Hacks 21 | . . . . . . . 4 . 2 5 . . . . 10 . . . . . Network Status 2 | . . . . . . . . . . 1 . . . . 1 . . . . . Load Schematic 9 | . . . . . . . 2 . 1 2 . . . . 4 . . . . . Build 10 | . . . . . . . 2 . 1 2 . . . . 5 . . . . . Repair Station Hacks 1 | . . . . . . . 1 . . . . . . . . . . . . . Scan Component 1 | . . . . . . . 1 . . . . . . . . . . . . . Recycling Unit Hacks 2 | . . . . . . . . . 2 . . . . . . . . . . . Process 1 | . . . . . . . . . 1 . . . . . . . . . . . Report Inventory 1 | . . . . . . . . . 1 . . . . . . . . . . . Scanalyzer . | . . . . . . . . . . . . . . . . . . . . . Garrison Access Hacks 4 | . . . . . . . 1 . . 2 . . . . 1 . . . . . Seal Access 4 | . . . . . . . 1 . . 2 . . . . 1 . . . . . Unauthorized Hacks 35 | . 1 . . . 2 5 7 . 2 10 . . . . 7 . . . . 1 Terminals 35 | . 1 . . . 2 5 7 . 2 10 . . . . 7 . . . . 1 Assimilate 4 | . . . . . . . 1 . . 3 . . . . . . . . . . Botnet 31 | . 1 . . . 2 5 6 . 2 7 . . . . 7 . . . . 1 Fabricators . | . . . . . . . . . . . . . . . . . . . . . Repair Stations . | . . . . . . . . . . . . . . . . . . . . . Recycling Units . | . . . . . . . . . . . . . . . . . . . . . Scanalyzers . | . . . . . . . . . . . . . . . . . . . . . Garrison Access . | . . . . . . . . . . . . . . . . . . . . . Data Cores Recovered 1 | . . . . . . . . . . 1 . . . . . . . . . . Used . | . . . . . . . . . . . . . . . . . . . . . Hacking Detections 44 | . 1 . . . 3 6 9 . 3 10 . . . . 11 . . . . 1 Full Trace Events 15 | . . . . . . 1 3 . 1 4 . . . . 6 . . . . . Feedback Events . | . . . . . . . . . . . . . . . . . . . . . Feedback Blocked . | . . . . . . . . . . . . . . . . . . . . . Robot Schematics Acquired . | . . . . . . . . . . . . . . . . . . . . . Robots Built 1 | . . . . . . . . . . . . . . . 1 . . . . . Authchips . | . . . . . . . . . . . . . . . . . . . . . Time 40 | . . . . . . . . . . . . . . . 40 . . . . . Total Robot Build Rating 1 | . . . . . . . . . . . . . . . 1 . . . . . Part Schematics Acquired 7 | . . . . . 1 . . . . 1 . . . . 1 . . 4 . . Parts Built 9 | . . . . . . . 2 . 1 2 . . . . 4 . . . . . Authchips . | . . . . . . . . . . . . . . . . . . . . . Time 669 | . . . . . . . 72 . 36 268 . . . . 293 . . . . . Total Part Build Rating 30 | . . . . . . . 6 . 3 8 . . . . 13 . . . . . Parts Repaired . | . . . . . . . . . . . . . . . . . . . . . Time . | . . . . . . . . . . . . . . . . . . . . . Parts Recycled . | . . . . . . . . . . . . . . . . . . . . . Recycled Matter . | . . . . . . . . . . . . . . . . . . . . . Retrieved Matter . | . . . . . . . . . . . . . . . . . . . . . Retrieved Components . | . . . . . . . . . . . . . . . . . . . . . Parts Scanalyzed . | . . . . . . . . . . . . . . . . . . . . . Part Schematics Acquired . | . . . . . . . . . . . . . . . . . . . . . Parts Damaged . | . . . . . . . . . . . . . . . . . . . . . Bothacking | -11 -10 -10 -10 -9 -8 -7 -6 -6 -6 -5 -5 -5 -5 -4 -4 -4 -4 -4 -3 -3 ------------ Run | Yrd Mat Min Exi Min Mat Fac Fac Was Fac Fac Upp Upp War Pro Fac Upp Upp Zhi Pro Res Used RIF Installer . | . . . . . . . . . . . . . . . . . . . . . Robots Hacked . | . . . . . . . . . . . . . . . . . . . . . Non-combat . | . . . . . . . . . . . . . . . . . . . . . Combat . | . . . . . . . . . . . . . . . . . . . . . Robot Hacks Applied . | . . . . . . . . . . . . . . . . . . . . . Relay Couplers Released . | . . . . . . . . . . . . . . . . . . . . . Fabnet Peak Effective % . | . . . . . . . . . . . . . . . . . . . . . Robots Rewired . | . . . . . . . . . . . . . . . . . . . . . Allies Hacked . | . . . . . . . . . . . . . . . . . . . . . Hacks Repelled . | . . . . . . . . . . . . . . . . . . . . . Allies | -11 -10 -10 -10 -9 -8 -7 -6 -6 -6 -5 -5 -5 -5 -4 -4 -4 -4 -4 -3 -3 -------- Run | Yrd Mat Min Exi Min Mat Fac Fac Was Fac Fac Upp Upp War Pro Fac Upp Upp Zhi Pro Res Total Allies 4 | . . 2 . . . . . . . 1 . . . . 1 . . . . . Largest Group 2 | . . 2 2 . . . . . . 1 . . . . 1 . . . . . Highest-Rated Group 42 | . . 42 42 . . . . . . 26 . . . . 6 . . . . . Highest-Rated Ally 31 | . . 31 31 . . . . . . 26 . . . . 6 . . . . . Total Orders . | . . . . . . . . . . . . . . . . . . . . . Ally Attacks . | . . . . . . . . . . . . . . . . . . . . . Total Damage . | . . . . . . . . . . . . . . . . . . . . . Kills . | . . . . . . . . . . . . . . . . . . . . . Allies Corrupted . | . . . . . . . . . . . . . . . . . . . . . Allies Melted . | . . . . . . . . . . . . . . . . . . . . . Intel | -11 -10 -10 -10 -9 -8 -7 -6 -6 -6 -5 -5 -5 -5 -4 -4 -4 -4 -4 -3 -3 ------- Run | Yrd Mat Min Exi Min Mat Fac Fac Was Fac Fac Upp Upp War Pro Fac Upp Upp Zhi Pro Res Robot Analysis Total 8 | . 1 . . . 1 . . . . 2 . . . . . . . 4 . . Derelict Logs Recovered 11 | . . 1 . . . . . . . . 2 3 . 1 . 2 2 . . . Drone Launches . | . . . . . . . . . . . . . . . . . . . . . Drone Recoveries . | . . . . . . . . . . . . . . . . . . . . . Exploration | -11 -10 -10 -10 -9 -8 -7 -6 -6 -6 -5 -5 -5 -5 -4 -4 -4 -4 -4 -3 -3 ------------- Run | Yrd Mat Min Exi Min Mat Fac Fac Was Fac Fac Upp Upp War Pro Fac Upp Upp Zhi Pro Res Turns Passed 11376 | 88 820 573 434 245 411 1434 1535 42 255 1545 512 291 323 387 856 210 602 201 285 327 Spaces Moved 19961 | 63 372 294 222 117 294 778 3538 150 750 4000 1234 682 1007 1073 2025 602 1176 354 737 493 Core 579 | 2 . . . . . . . . . . . . . . . . . . 84 493 Treads . | . . . . . . . . . . . . . . . . . . . . . Legs 2055 | 61 372 294 222 117 294 695 . . . . . . . . . . . . . . Wheels . | . . . . . . . . . . . . . . . . . . . . . Hover . | . . . . . . . . . . . . . . . . . . . . . Flight 17327 | . . . . . . 83 3538 150 750 4000 1234 682 1007 1073 2025 602 1176 354 653 . Fastest Speed 20 | 50 120 190 190 190 120 26 24 27 27 25 25 31 31 27 20 24 24 27 24 50 Average Speed 43 | 117 184 190 190 190 126 109 27 27 27 25 36 37 31 29 29 27 34 53 34 59 Slowest Speed 230 | 120 190 190 190 190 190 120 114 27 27 29 97 175 31 35 107 94 97 97 230 200 Overloaded Moves 130 | . . . . . . . . . . . . . . . 35 . . . 95 . Propulsion Burnouts 1 | . . . . . . . . . . . . . . . . . . . 1 . Robots Hopped 14 | . . . . . . 1 5 . . 1 . . . . 7 . . . . . Cave-ins Triggered . | . . . . . . . . . . . . . . . . . . . . . Teleports 1 | . . . . . . . . . . . . . . . . . . 1 . . Exploration Rate (%) 54 | 4 58 60 59 31 26 19 48 79 14 65 89 68 93 78 40 70 87 63 91 12 Regions Visited 20 Branch Regions 11 Pre-discovered Areas 7 | . . 1 . . . . . . . . . 2 . . . . 1 3 . . Known Exits Taken 7 | . . . . . . . . . 1 1 . . . . 1 1 1 1 1 . Unknown Exits Taken 11 | 1 1 1 1 1 1 1 . . . . 1 1 1 1 . . . . . . Scrap Searched 16 | . . . . 1 . . . . . . 4 2 . 4 . 1 3 . 1 . Spaces Dug 108 | . . . . . . 9 17 . 4 22 . 2 . . 54 . . . . . Terrain Destroyed 699 | . . . . . . 57 157 . 4 60 20 2 . 9 131 52 193 . 14 . Melee 63 | . . . . . . . 17 . 4 22 . 2 . . 18 . . . . . Projectile 15 | . . . . . . . 4 . . . . . . 9 . . . . 2 . AOE 621 | . . . . . . 57 136 . . 38 20 . . . 113 52 193 . 12 . Terrain Rammed . | . . . . . . . . . . . . . . . . . . . . . Walls Destroyed . | . . . . . . . . . . . . . . . . . . . . . Machines Disabled . | . . . . . . . . . . . . . . . . . . . . . Actions | -11 -10 -10 -10 -9 -8 -7 -6 -6 -6 -5 -5 -5 -5 -4 -4 -4 -4 -4 -3 -3 --------- Run | Yrd Mat Min Exi Min Mat Fac Fac Was Fac Fac Upp Upp War Pro Fac Upp Upp Zhi Pro Res Total 22198 | 75 467 309 235 137 327 1275 4013 150 786 4428 1270 714 1017 1121 2228 642 1358 364 760 522 Wait 1667 | . 50 16 3 17 1 398 373 1 26 344 10 24 7 26 160 25 165 . 13 8 Move 19915 | 62 371 293 221 116 293 775 3528 149 749 3997 1233 681 1006 1072 2011 601 1175 353 736 493 Hop 13 | . . . . . . 1 5 . . 1 . . . . 6 . . . . . Pick Up 65 | 6 11 . . . 6 11 12 . 1 7 . . 1 1 5 2 . 1 . 1 Fast Attach 81 | 5 6 . 5 . 6 5 10 . . 11 3 2 1 4 10 . 1 5 2 5 Attach 36 | 1 . . . . 4 4 7 . 1 3 3 3 . . 3 4 1 . 2 . Detach 17 | . 1 . 1 . 2 . 3 . . . 2 1 2 . 1 2 . . 2 . Swap 43 | . 1 . . 2 3 15 12 . . 6 . . . 3 . . . 1 . . Drop 84 | 1 5 . 5 . 9 22 19 . . 11 . . . 1 5 2 . 4 . . Fire 159 | . 22 . . 2 3 43 19 . . 1 19 1 . 14 9 4 16 . 5 1 Melee 103 | . . . . . . . 25 . 9 47 . 2 . . 18 2 . . . . Ram 3 | . . . . . . . . . . . . . . . . . . . . 3 Kick 1 | . . . . . . 1 . . . . . . . . . . . . . . Crush . | . . . . . . . . . . . . . . . . . . . . . Escape Stasis 11 | . . . . . . . . . . . . . . . . . . . . 11 Rewire . | . . . . . . . . . . . . . . . . . . . . . Trap . | . . . . . . . . . . . . . . . . . . . . . Miscellaneous . | . . . . . . . . . . . . . . . . . . . . . Route ------- -11/Scrapyard -10/Materials (discovered 3 exits: [*Mat] / [*Min x2]) -10/Mines (discovered 3 exits: [*Mat] / *Exi / [*Sub]) -10/Exiles -9/Mines -8/Materials -7/Factory -6/Factory -6/Waste -6/Factory -5/Factory (discovered 2 exits: *Upp / *Ext) -5/Upper Caves -5/Upper Caves -5/Warlord -4/Proximity Caves -4/Factory (discovered 5 exits: Res x2 / *Upp x2 / Arm) -4/Upper Caves -4/Upper Caves (discovered 2 exits: *Res / *Zhi) -4/Zhirov -3/Proximity Caves -3/Research (discovered 2 exits: Qua x2) History --------- Turn | Location | Event 5 | -11/Scrapyard | Discovered new exit (range 16) 89 | -11/Scrapyard | Entered Materials 304 | -10/Materials | Build established: Mutant 579 | -10/Materials | Discovered new exit (range 14) 771 | -10/Materials | Discovered new exit (range 15) 871 | -10/Materials | Discovered new exit (range 14) 889 | -10/Materials | Derelicts attacked the area 909 | -10/Materials | Entered Mines 946 | -10/Mines | Learned location of Zion (-6) 1085 | -10/Mines | Discovered new exit (range 12) 1398 | -10/Mines | Discovered new exit (range 6) 1461 | -10/Mines | Deemed a non-threat by the Exiles lab entrance 1463 | -10/Mines | Discovered new exit (range 5) 1482 | -10/Mines | Entered Exiles 1482 | -10/Exiles | Accompanied by 2 allies 1512 | -10/Exiles | Led the pair of lost Derelicts to a safe place 1532 | -10/Exiles | Met 8R-AWN 1566 | -10/Exiles | Met EX-HEX 1625 | -10/Exiles | Met EX-BIN 1646 | -10/Exiles | Aligned with FarCom system 1648 | -10/Exiles | Given EX-Vault access code 1699 | -10/Exiles | Opened EX-Vault 1713 | -10/Exiles | Found Prototype Energy Gun 1713 | -10/Exiles | Identified AWS/Thermal 1717 | -10/Exiles | Found Prototype Energy Cannon 1717 | -10/Exiles | Identified YOLO Cannon 1721 | -10/Exiles | Found Prototype Energy Cannon 1721 | -10/Exiles | Identified Gui. Plasma Cannon 1771 | -10/Exiles | Warned to stay clear of 0b10 Research branches 1790 | -10/Exiles | Exiles lab attacked by MAIN.C 1893 | -10/Exiles | Discovered new exit (range 14) 1916 | -10/Exiles | Left Exiles lab with Gui. Plasma Cannon 1916 | -10/Exiles | Entered Mines 1917 | -9/Mines | Assembled infested the area 1922 | -9/Mines | Assisted by a Guerilla fighting off Assembled 1974 | -9/Mines | Discovered new exit (range 16) 2161 | -9/Mines | Entered Materials 2161 | -8/Materials | Evolved 4 slots: Propulsion x2, Utility x2 2485 | -8/Materials | Discovered new exit (range 10) 2572 | -8/Materials | Entered Factory 2572 | -7/Factory | Evolved 2 slots: Power x1, Utility x1 4004 | -7/Factory | Discovered new exit (range 8) 4006 | -7/Factory | Entered another Factory area 4006 | -6/Factory | Evolved 2 slots: Propulsion x1, Utility x1 4008 | -6/Factory | Lost 5 parts (1p1n3w) 4275 | -6/Factory | Fabricated Hacking Suite? 4438 | -6/Factory | Build established: Scout 5113 | -6/Factory | Build established: Hacker-Scout 5398 | -6/Factory | Fabricated Hacking Suite? 5457 | -6/Factory | Discovered new exit (range 7) 5459 | -6/Factory | Identified exit to Lower Caves 5541 | -6/Factory | Sucked down chute 5541 | -6/Factory | Entered Waste 5558 | -6/Waste | Spotted C-40 Crusher 5565 | -6/Waste | Spotted C-40 Crusher 5569 | -6/Waste | Spotted C-40 Crusher 5570 | -6/Waste | Spotted C-40 Crusher 5570 | -6/Waste | Spotted C-40 Crusher 5572 | -6/Waste | Spotted C-40 Crusher 5579 | -6/Waste | Discovered new exit (range 16) 5582 | -6/Waste | Identified exit to Factory 5583 | -6/Waste | Entered Factory 5583 | -6/Factory | Discovered new exit (range 15) 5596 | -6/Factory | Identified exit to Factory 5745 | -6/Factory | Fabricated Hacking Suite? 5838 | -6/Factory | Entered another Factory area 5838 | -5/Factory | Evolved 2 slots: Utility x2 6316 | -5/Factory | Discovered new exit (range 15) 6319 | -5/Factory | Identified exit to Extension 6530 | -5/Factory | Lost 3 parts (2p1u) 6540 | -5/Factory | Fabricated Cld. VTOL Module? 6548 | -5/Factory | Central database locked down 6596 | -5/Factory | Fabricated Cld. VTOL Module? 6786 | -5/Factory | Build established: Hacker-Sprinter 7380 | -5/Factory | Discovered new exit (range 6) 7383 | -5/Factory | Identified exit to Upper Caves 7383 | -5/Factory | Entered Upper Caves 7478 | -5/Upper Caves | Learned Factory terminal intel 7520 | -5/Upper Caves | Attracted the attention of an 0b10 base 7567 | -5/Upper Caves | Learned 12 Factory zone layouts 7688 | -5/Upper Caves | Lost 5 parts (1p2n1u1w) 7893 | -5/Upper Caves | Discovered new exit (range 7) 7895 | -5/Upper Caves | Attracted the attention of an 0b10 checkpoint 7895 | -5/Upper Caves | Entered another Upper Caves area 7916 | -5/Upper Caves | Attracted the attention of an 0b10 checkpoint 7982 | -5/Upper Caves | Encountered a Warlord checkpoint 8079 | -5/Upper Caves | Spotted B-75 Beast 8133 | -5/Upper Caves | Learned location of Warlord (-5) 8181 | -5/Upper Caves | Learned 12 Factory zone layouts 8185 | -5/Upper Caves | Discovered new exit (range 4) 8186 | -5/Upper Caves | Entered Warlord 8197 | -5/Warlord | System corruption cleaned by Quarantine Array 8259 | -5/Warlord | Opened side exit 8265 | -5/Warlord | Discovered new exit (range 10) 8310 | -5/Warlord | Found Signal Generator 8366 | -5/Warlord | Warlord's base attacked by MAIN.C 8384 | -5/Warlord | Found Prototype Energy Gun 8384 | -5/Warlord | Identified Vortex Shotgun 8439 | -5/Warlord | Met Warlord 8449 | -5/Warlord | Learned 4 Armory zone layouts 8449 | -5/Warlord | Learned 4 Access zone layouts 8449 | -5/Warlord | Learned Armory terminal intel 8449 | -5/Warlord | Learned Armory scanalyzer intel 8509 | -5/Warlord | Entered Proximity Caves 8513 | -4/Proximity Caves | Learned location of 1 exit from Research 8674 | -4/Proximity Caves | Attracted the attention of an 0b10 checkpoint 8802 | -4/Proximity Caves | Lost 3 parts (1p2n) 8890 | -4/Proximity Caves | Spotted B-86 Titan 8893 | -4/Proximity Caves | Discovered new exit (range 11) 8896 | -4/Proximity Caves | Entered Factory 8896 | -4/Factory | Evolved 2 slots: Propulsion x1, Utility x1 8897 | -4/Factory | Identified exit to Armory 8898 | -4/Factory | Identified exit to Research 8899 | -4/Factory | Loaded intel: 26 terminal locations 9059 | -4/Factory | Spotted B-86 Titan 9133 | -4/Factory | Fabricated Cld. VTOL Module? 9157 | -4/Factory | Fabricated Med. Storage Unit? 9187 | -4/Factory | Identified exit to Upper Caves 9231 | -4/Factory | Fabricated K-01 Serf (x1) 9284 | -4/Factory | Build established: Wizard-Scout 9299 | -4/Factory | Fabricated Cld. VTOL Module (x1) 9536 | -4/Factory | Lost 3 parts (2n1w) 9705 | -4/Factory | Fabricated Cld. VTOL Module? 9752 | -4/Factory | Entered Upper Caves 9895 | -4/Upper Caves | Identified exit to Upper Caves 9922 | -4/Upper Caves | Learned Research interactive machine intel 9944 | -4/Upper Caves | Spotted B-86 Titan 9962 | -4/Upper Caves | Entered another Upper Caves area 9984 | -4/Upper Caves | Learned location of Testing (-2) 9987 | -4/Upper Caves | Spotted B-86 Titan 10022 | -4/Upper Caves | Encountered a Warlord checkpoint 10032 | -4/Upper Caves | Discovered exit to Research (range 7) 10081 | -4/Upper Caves | Build established: Hacker-Scout 10507 | -4/Upper Caves | Attracted the attention of an 0b10 checkpoint 10544 | -4/Upper Caves | Discovered new exit (range 10) 10552 | -4/Upper Caves | Lost 3 parts (1p1n1w) 10564 | -4/Upper Caves | Identified exit to Zhirov 10564 | -4/Upper Caves | Entered Zhirov 10564 | -4/Zhirov | Discovered new exit (range 3) 10601 | -4/Zhirov | Learned location of Quarantine (-3) 10601 | -4/Zhirov | Learned location of Command (-1) 10642 | -4/Zhirov | Found Alien Artifact 10697 | -4/Zhirov | Found Alien Artifact 10697 | -4/Zhirov | Identified Transdimensional Reconstructor 10697 | -4/Zhirov | Warped through subspace 10710 | -4/Zhirov | Identified Integrated Reactor 10710 | -4/Zhirov | Installed Integrated Reactor, increased core energy generation (+10) 10734 | -4/Zhirov | Identified exit to Proximity Caves 10765 | -4/Zhirov | Entered Proximity Caves 10767 | -3/Proximity Caves | Spotter reported a threat 10862 | -3/Proximity Caves | Core integrity fell below 50% 10864 | -3/Proximity Caves | Lost 6 parts (2n1u3w) 10950 | -3/Proximity Caves | Attracted the attention of an 0b10 checkpoint 11039 | -3/Proximity Caves | Lost 5 parts (2n2u1w) 11042 | -3/Proximity Caves | Discovered exit to Research (range 17) 11050 | -3/Proximity Caves | Entered Research 11050 | -3/Research | Evolved 2 slots: Utility x2 11051 | -3/Research | Identified exit to Quarantine 11053 | -3/Research | Loaded intel: 42 interactive machine locations 11257 | -3/Research | Build established: Hacker-Mutant 11333 | -3/Research | Core integrity fell below 50% 11346 | -3/Research | Core integrity fell below 20% 11377 | -3/Research | Destroyed by H-77 Assassin with Coil Gun Last Messages --------------- 11347_ Penetrated by Slug. 11347_ Slug penetrates Y-72 Warden. 11347_ Penetrated by Slug. 11349_ P-80 Master resets H-77 Assassin, system corruption cleaned. 11355_ Slammed into U-05 Engineer. 11356_ ALERT: Construction progress impeded, dispatching reinforcements to local area. 11361_ Acquired Prototype Reactor. 11361_ Identified Com. Particle Reactor. 11363_ Slug penetrates Wall. 11363_ Penetrated by Slug. 11363_ Adv. Hacking Suite destroyed. 11365_ System corrupted: IFF burst signal emitted. 11365_ Fabricator disabled. 11372_ Slug penetrates Wall. 11374_ Slammed into P-80 Master. 11376_ Com. Particle Reactor destroyed. 11376_ Slug penetrates Wall. Map ----- +----------------------------------------------------+ | ??????????# "T #???# # # # | | ??????????# " #???# # # #### | | ??????????# #???# """ # ###+######### | | ??????????# #???# "R + | | ??????????# #???# """ # | | ??????????### ###???# # | | ????????????# #?????# # | | ????????????# #?????# ############### | | ????????????# #?????###########????# # | | ????######### ##???????????????????# # | | ????# # #???########????????# """ + | | ????# # #???# ########## """ # | | ????# " #???# + + "S # | | ????# # #???# # ######## """ # | | ????# # #???# # # ! # "" # | | ????# ### ###???# # + # # | | ????########?# #?????# # # + # | | ?????????????# ###########+## # !########## | | ?????????????# Y h + #????????# | | ????????????############## #### #????????# | | ????????????# """" #Y#??########????????# | | ??????????### " " # #??????????????????# | | ??????????#"" [#h#??????????????????# | | ??????????#"" ] # ##############?????# | | ??????????#"" p # | | ??????????#"Y * p@ | | ??????????#"" ** # | | ??????????#"" """ ** # C | | ??????????#"" """ ####+######+###########+# | | ??????????### """ #???????????????????????? | | ????????????# #???????????????????????? | | ????????????# = #???????????????????????? | | ????????????####### ######???????????????????????? | | ??????????????????##?????????????????????????????? | | ?????????????????????????????????????????????????? | | ?????????????????????????????????????????????????? | | ?????????????????????????????????????????????????? | | ?????????????????????????????????????????????????? | | ?????????????????????????????????????????????????? | | ?????????????????????????????????????????????????? | | ?????????????????????????????????????????????????? | | ?????????????????????????????????????????????????? | | ?????????????????????????????????????????????????? | | ?????????????????????????????????????????????????? | | ?????????????????????????????????????????????????? | | ?????????????????????????????????????????????????? | | ?????????????????????????????????????????????????? | | ?????????????????????????????????????????????????? | | ?????????????????????????????????????????????????? | | ?????????????????????????????????????????????????? | +----------------------------------------------------+ Best States ------------- Heat Dissipation 67 Energy Generation 33 Energy Capacity 520 Matter Stores 300 Matter Capacity 300 Sight Range 20 Terrain Scan Range 20 Terrain Scan Density 210 ECM Strength 2 Evasion (%) 65 Targeting Accuracy 14 Core Analysis 9 Offensive Hacking 54 Defensive Hacking 30 Authchip Count 1 Item Schematics ----------------- Hacking Suite | -8/Materials | Hacked Cld. VTOL Module | -5/Factory | Hacked Med. Storage Unit | -4/Factory | Hacked Assault Drone Bay | -4/Zhirov | Free Exp. Heat Sink | -4/Zhirov | Free Exp. Optical Array | -4/Zhirov | Free Imp. Arc Thrower | -4/Zhirov | Free Robot Schematics ------------------ None Fabricated ------------ Hacking Suite | x1 | -6/Factory Hacking Suite | x1 | -6/Factory Hacking Suite | x1 | -6/Factory Cld. VTOL Module | x1 | -5/Factory Cld. VTOL Module | x1 | -5/Factory Cld. VTOL Module | x1 | -4/Factory Med. Storage Unit | x1 | -4/Factory K-01 Serf | x1 | -4/Factory | Preloaded Cld. VTOL Module | x1 | -4/Factory Cld. VTOL Module | x1 | -4/Factory Alien Tech Used ----------------- Transdimensional Reconstructor Integrated Reactor Achievements -------------- Alien Tech Armchair Analyst It Was An Accident, I Swear Subspace Traveler Watch This! Challenges ------------ None Game ------ Seed HellfireFocalScreen Manual? 0 Play Time 03:21:40 Cumulative 25.4 hours Start 2024.06.30 @ 15:28:07 End 2024.06.30 @ 19:53:04 Sessions 1 Manual Loads 0 Difficulty Rogue Special Mode None Game No. 26 Rogue 26 Adventurer 0 Explorer 0 Win Type - Total 0 Types 0/0/0/0/0/0/0/0/0 Lore% 34 Gallery% 32 Achievement% 32 Wizard Run 0 Options --------- Layout 1 ASCII 0 Keyboard 0 Movement Numpad Keybinds 0 Fullscreen 1 Font 32/SmallcapsGlow Map View 50x35 Zoom Use 0% Tactical HUD 1 Map Filters NONE Filters NONE Steam 1 RUN: f2b24753-555b-47ad-a8fe-38053ac07134